bitfinex/quotes_SOLUSD_20240909
["timestamp","ask_amount","ask_price","bid_price","bid_amount"]
[1725880490493,0.16280163,129.95,129.9,2.46902416]
[1725880490670,0.16280163,129.95,129.88,32.08695996]
[1725880490671,0.16280163,129.95,129.91,2.46902416]
[1725880490991,0.16280163,129.95,129.92,2.46902416]
[1725880491204,0.16280163,129.95,129.88,32.08695996]
[1725880491760,0.16280163,129.95,129.89,47.46936599]
[1725880492185,0.16280163,129.95,129.9,22.46936599]
[1725880492393,0.16280163,129.95,129.91,47.46936599]
[1725880492565,0.16280163,129.95,129.94,15.89855996]
[1725880492766,0.16280163,129.95,129.94,80.89855996]
[1725880509901,0.14704024,129.95,129.94,65.0]
[1725880510087,0.14704024,129.95,129.94,80.89855996]
[1725880510289,0.14704024,129.95,129.94,65.0]
[1725880510880,0.14704024,129.95,129.94,20.0]
[1725880512203,0.14704024,129.95,129.93,20.0]
[1725880517300,0.14704024,129.95,129.88,16.2492]
[1725880517604,0.14704024,129.95,129.89,15.89855996]
[1725880518696,0.14704024,129.95,129.85,31.05730137]
[1725880518697,6.63934024,129.95,129.85,31.05730137]
[1725880518998,6.63934024,129.95,129.87,15.89855996]
[1725880519582,6.63934024,129.95,129.89,15.89855996]
[1725880521317,0.14704024,129.95,129.93,15.89855996]
[1725880529522,0.14704024,129.95,129.94,65.0]
[1725880529701,0.29322343,129.95,129.94,65.0]
[1725880529904,0.14618319,129.95,129.94,65.0]
[1725880531911,0.14618319,129.95,129.94,80.89855996]
[1725880540331,0.14618319,129.95,129.94,60.89855996]
[1725880540630,0.14618319,129.95,129.94,65.0]
[1725880544340,0.14618319,129.95,129.94,80.89855996]
[1725880549029,8.319e-05,129.95,129.94,80.89855996]
[1725880549215,8.319e-05,129.95,129.94,65.0]
[1725880549419,8.319e-05,129.95,129.94,80.89855996]
[1725880549615,0.16684145,129.95,129.94,80.89855996]
[1725880549837,0.16675826,129.95,129.94,80.89855996]
[1725880561851,0.16675826,129.95,129.94,20.0]
[1725880562045,0.16675826,129.95,129.94,15.89855996]
[1725880562253,0.16675826,129.95,129.94,35.89855996]
[1725880563456,0.16675826,129.95,129.94,80.89855996]
[1725880567661,0.16675826,129.95,129.94,65.0]
[1725880567952,0.16675826,129.95,129.94,20.0]
[1725880568127,0.16675826,129.95,129.91,15.89855996]
[1725880568332,0.16675826,129.95,129.92,20.0]
[1725880569255,0.16675826,129.95,129.91,15.89855996]
[1725880569461,0.16675826,129.95,129.92,20.0]
[1725880569759,0.14508161,129.93,129.92,20.0]
[1725880570425,0.14508161,129.93,129.92,65.0]
[1725880576258,0.14508161,129.93,129.92,80.89855996]
[1725880579057,0.14508161,129.93,129.92,65.0]
[1725880579237,0.14508161,129.93,129.92,80.89855996]
[1725880589643,0.28924516,129.93,129.92,80.89855996]
[1725880589846,0.14416355,129.93,129.92,80.89855996]
[1725880591772,0.14416355,129.93,129.88,23.09486019]
[1725880592251,0.14416355,129.93,129.88,7.19630023]
[1725880592568,0.14416355,129.93,129.86,16.0427]
[1725880592771,0.14416355,129.93,129.86,15.89855996]
[1725880593268,0.14416355,129.93,129.87,20.0]
[1725880593770,0.14416355,129.93,129.86,15.89855996]
[1725880593971,0.14416355,129.93,129.87,45.0]
[1725880594465,0.14416355,129.93,129.86,15.89855996]
[1725880595869,0.14416355,129.93,129.87,65.0]
[1725880596559,0.14416355,129.93,129.88,15.89855996]
[1725880597266,0.14416355,129.93,129.88,17.43819649]
[1725880597580,0.14416355,129.93,129.89,45.0]
[1725880598787,0.14416355,129.93,129.92,15.89855996]
[1725880599462,0.14416355,129.93,129.92,80.89855996]
[1725880601273,0.14416355,129.93,129.92,20.0]
[1725880601581,0.14416355,129.93,129.91,20.0]
[1725880602291,0.14416355,129.93,129.9,15.89855996]
[1725880602480,0.14416355,129.93,129.91,20.0]
[1725880606089,0.14416355,129.93,129.85,24.51060137]
[1725880606393,0.14416355,129.93,129.88,15.89855996]
[1725880606595,0.14416355,129.93,129.89,20.0]
[1725880606765,0.14416355,129.93,129.9,15.89855996]
[1725880606970,0.14416355,129.93,129.92,15.89855996]
[1725880607589,0.14416355,129.93,129.92,60.89855996]
[1725880609665,0.29337153,129.93,129.92,60.89855996]
[1725880609866,0.14920798,129.93,129.92,60.89855996]
[1725880612466,0.14920798,129.93,129.92,45.0]
[1725880612677,0.14920798,129.93,129.91,45.0]
[1725880612885,0.14920798,129.93,129.91,67.4691541]
[1725880613085,0.14920798,129.93,129.91,45.0]
[1725880613277,0.14920798,129.93,129.91,2.4691541]
[1725880613477,0.14920798,129.93,129.91,67.4691541]
[1725880613677,0.14920798,129.93,129.9,2.4691541]
[1725880613895,0.14920798,129.93,129.91,2.4691541]
[1725880614200,0.14920798,129.93,129.9,2.4691541]
[1725880614368,0.14920798,129.93,129.91,2.4691541]
[1725880614700,0.14920798,129.93,129.9,2.4691541]
[1725880619675,0.14920798,129.93,129.9,47.4691541]
[1725880620004,0.14920798,129.93,129.91,20.0]
[1725880625107,0.14920798,129.93,129.9,47.4691541]
[1725880626204,0.14920798,129.93,129.9,2.4691541]
[1725880626416,0.14920798,129.93,129.9,22.4691541]
[1725880627315,0.14920798,129.93,129.9,2.4691541]
[1725880627603,15.47070798,129.93,129.88,22.4691541]
[1725880627997,15.47070798,129.93,129.89,2.4691541]
[1725880628300,15.47070798,129.93,129.9,2.4691541]
[1725880628482,15.47070798,129.93,129.89,2.4691541]
[1725880628683,15.47070798,129.93,129.9,2.4691541]
[1725880629017,15.47070798,129.93,129.89,2.4691541]
[1725880629184,15.47070798,129.93,129.9,2.4691541]
[1725880629387,15.47070798,129.93,129.89,2.4691541]
[1725880629582,15.47070798,129.93,129.9,2.4691541]
[1725880629800,0.14206279,129.9,129.89,2.4691541]
[1725880630407,0.14206279,129.9,129.89,18.36771406]
[1725880630701,0.14206279,129.9,129.89,38.36771406]
[1725880631013,0.14206279,129.9,129.89,83.36771406]
[1725880634410,0.14206279,129.9,129.89,83.36805243]
[1725880635498,0.14206279,129.9,129.89,67.46949247]
[1725880635805,0.14206279,129.9,129.89,83.36805243]
[1725880637495,0.14206279,129.9,129.89,80.89855996]
[1725880637698,0.14206279,129.9,129.89,65.0]
[1725880638091,0.14206279,129.9,129.89,67.46949247]
[1725880638407,0.14206279,129.9,129.89,2.46949247]
[1725880638613,0.14206279,129.9,129.89,4.93919394]
[1725880642314,0.14206279,129.9,129.89,2.46970147]
[1725880643519,0.14206279,129.9,129.88,22.46970147]
[1725880643719,0.14206279,129.9,129.89,2.46970147]
[1725880646297,0.14206279,129.9,129.86,15.89855996]
[1725880646618,0.14206279,129.9,129.87,22.46970147]
[1725880646802,0.14206279,129.9,129.88,2.46970147]
[1725880647526,0.14206279,129.9,129.87,20.0]
[1725880647695,0.14206279,129.9,129.86,20.0]
[1725880648196,0.14206279,129.9,129.88,2.47004297]
[1725880649706,0.15576204,129.89,129.88,2.47004297]
[1725880650016,0.15576204,129.89,129.88,49.94008652]
[1725880651420,0.15576204,129.89,129.88,47.47004297]
[1725880651624,0.15576204,129.89,129.88,49.93980543]
[1725880652200,0.15576204,129.89,129.88,47.46976246]
[1725880653716,0.15576204,129.89,129.88,69.009213]
[1725880654032,0.15576204,129.89,129.88,67.46976246]
[1725880654414,0.15576204,129.89,129.88,69.00924494]
[1725880654609,0.15576204,129.89,129.88,69.00922247]
[1725880655831,0.15576204,129.89,129.88,67.46976246]
[1725880657709,0.15576204,129.89,129.88,65.0]
[1725880657910,0.15576204,129.89,129.88,67.46968611]
[1725880661133,0.15576204,129.89,129.88,67.46966356]
[1725880664535,0.15576204,129.89,129.88,67.46967484]
[1725880667328,0.15576204,129.89,129.88,69.00920336]
[1725880667848,0.15576204,129.89,129.88,69.00904934]
[1725880668143,0.15576204,129.89,129.88,66.53952852]
[1725880668441,0.15576204,129.89,129.88,69.009023]
[1725880669731,0.29979813,129.89,129.88,69.009023]
[1725880669940,0.14403609,129.89,129.88,69.009023]
[1725880670846,0.14403609,129.89,129.88,66.53952852]
[1725880671533,0.14403609,129.89,129.88,69.009023]
[1725880673332,0.14403609,129.89,129.88,67.46949448]
[1725880675937,3.609e-05,129.89,129.88,69.00882405]
[1725880676447,3.609e-05,129.89,129.88,67.46949448]
[1725880678144,3.609e-05,129.89,129.88,67.46946584]
[1725880679852,3.609e-05,129.89,129.88,22.46946584]
[1725880680144,3.609e-05,129.89,129.88,38.3680258]
[1725880680656,3.609e-05,129.89,129.88,35.89855996]
[1725880681030,3.609e-05,129.89,129.88,38.36802171]
[1725880681335,3.609e-05,129.89,129.88,83.36802171]
[1725880682254,3.609e-05,129.89,129.88,67.46946175]
[1725880682440,3.609e-05,129.89,129.88,83.36802171]
[1725880688961,3.609e-05,129.89,129.88,83.36808766]
[1725880689765,0.14490759,129.89,129.88,83.36808766]
[1725880693265,0.14490759,129.89,129.88,80.89855996]
[1725880693634,0.14490759,129.89,129.88,83.36808766]
[1725880696364,0.14490759,129.89,129.88,80.89855996]
[1725880696745,0.14490759,129.89,129.88,83.36808766]
[1725880697064,0.14490759,129.89,129.88,67.4695277]
[1725880697272,0.14490759,129.89,129.88,83.36808766]
[1725880698471,0.14490759,129.89,129.88,80.89855996]
[1725880698641,0.14490759,129.89,129.88,83.36808766]
[1725880699871,0.14490759,129.89,129.88,80.89855996]
[1725880700376,0.14490759,129.89,129.88,83.36808766]
[1725880702171,0.15206573,129.9,129.88,83.36808766]
[1725880702479,0.15206573,129.9,129.89,69.00876248]
[1725880703679,0.15206573,129.9,129.89,67.4695277]
[1725880707075,0.15206573,129.9,129.89,20.0]
[1725880707376,0.15206573,129.9,129.89,24.00879211]
[1725880707573,0.15206573,129.9,129.89,22.4694289]
[1725880708459,0.15206573,129.9,129.89,67.4694289]
[1725880709690,0.30050486,129.9,129.89,67.4694289]
[1725880709886,0.14843913,129.9,129.89,67.4694289]
[1725880716283,0.14843913,129.9,129.89,65.0]
[1725880716787,0.14843913,129.9,129.89,67.4692808]
[1725880717271,0.14843913,129.9,129.89,67.46928127]
[1725880729688,0.30387542,129.9,129.89,67.46928127]
[1725880729892,0.15543629,129.9,129.89,67.46928127]
[1725880735794,0.15543629,129.9,129.89,65.0]
[1725880735972,0.15543629,129.9,129.89,67.46937119]
[1725880736494,0.15543629,129.9,129.89,65.0]
[1725880736877,0.15543629,129.9,129.89,67.4693711]
[1725880739596,0.15543629,129.9,129.89,65.0]
[1725880739894,0.15543629,129.9,129.89,67.46937082]
[1725880741619,0.15543629,129.9,129.89,65.0]
[1725880742009,0.15543629,129.9,129.89,67.46937125]
[1725880742972,0.15543629,129.9,129.89,22.46937125]
[1725880743169,0.15543629,129.9,129.89,2.46937125]
[1725880744478,0.15543629,129.9,129.86,2.46937125]
[1725880744693,0.15543629,129.9,129.87,2.46937125]
[1725880744900,0.15543629,129.9,129.84,16.75518186]
[1725880745073,0.15543629,129.9,129.87,2.47006632]
[1725880745477,0.15543629,129.9,129.85,2.47006632]
[1725880745673,0.15543629,129.9,129.86,15.89855996]
[1725880745902,0.15543629,129.9,129.87,2.47006632]
[1725880746089,0.15543629,129.9,129.88,2.47006632]
[1725880746405,0.15543629,129.9,129.87,2.47006632]
[1725880746606,0.15543629,129.9,129.88,2.47006632]
[1725880746908,0.15543629,129.9,129.87,2.47006632]
[1725880747093,0.15543629,129.9,129.88,2.47006632]
[1725880747283,0.15543629,129.9,129.87,2.47006632]
[1725880747485,0.15543629,129.9,129.88,2.47006632]
[1725880747801,0.15543629,129.9,129.87,2.47006632]
[1725880747987,0.15543629,129.9,129.88,2.47006632]
[1725880748189,0.15543629,129.9,129.87,2.47006632]
[1725880749800,0.14508558,129.88,129.87,2.47006632]
[1725880751798,0.14508558,129.88,129.86,15.89855996]
[1725880752109,0.14508558,129.88,129.87,2.46998782]
[1725880752487,0.14508558,129.88,129.86,15.89855996]
[1725880752682,0.14508558,129.88,129.86,18.36854778]
[1725880752978,0.14508558,129.88,129.86,15.89855996]
[1725880753180,0.14508558,129.88,129.86,18.36854778]
[1725880753480,0.14508558,129.88,129.86,15.89855996]
[1725880753680,0.14508558,129.88,129.86,18.36854778]
[1725880753900,0.14508558,129.88,129.86,15.89855996]
[1725880754099,0.14508558,129.88,129.86,18.36854778]
[1725880754302,0.14508558,129.88,129.86,15.89855996]
[1725880754495,0.14508558,129.88,129.86,18.36854778]
[1725880754695,0.14508558,129.88,129.86,15.89855996]
[1725880754895,0.14508558,129.88,129.86,18.36854778]
[1725880755098,0.14508558,129.88,129.86,15.89855996]
[1725880755301,0.14508558,129.88,129.86,18.36854778]
[1725880755499,0.14508558,129.88,129.86,15.89855996]
[1725880755697,0.14508558,129.88,129.86,18.36854778]
[1725880755909,0.14508558,129.88,129.86,15.89855996]
[1725880756112,0.14508558,129.88,129.87,1.53986172]
[1725880756403,0.14516409,129.89,129.87,49.00984954]
[1725880756642,0.14516409,129.89,129.88,38.36854778]
[1725880756904,0.14516409,129.89,129.88,67.46998782]
[1725880757109,0.14516409,129.89,129.85,2.46998782]
[1725880757298,0.14516409,129.89,129.87,15.89855996]
[1725880757495,0.14516409,129.89,129.87,18.36854778]
[1725880757697,0.14516409,129.89,129.87,15.89855996]
[1725880758009,0.14516409,129.89,129.87,18.36854778]
[1725880758414,0.14516409,129.89,129.87,15.89855996]
[1725880759008,0.14516409,129.89,129.85,20.0]
[1725880759214,0.14516409,129.89,129.87,2.46992189]
[1725880759630,0.14516409,129.89,129.86,60.89855996]
[1725880760309,0.14516409,129.89,129.86,15.89855996]
[1725880761621,0.14516409,129.89,129.85,15.89855996]
[1725880768229,0.14516409,129.89,129.84,16.75518186]
[1725880769826,0.14095198,129.85,129.84,0.8566219]
[1725880770533,0.14095198,129.85,129.84,16.75518186]
[1725880772121,0.14095198,129.85,129.84,61.75518186]
[1725880772304,0.14095198,129.85,129.84,63.29526577]
[1725880773203,0.14095198,129.85,129.84,83.29526577]
[1725880773421,0.15491658,129.87,129.84,83.29526577]
[1725880773622,1.658e-05,129.87,129.86,15.89855996]
[1725880773808,0.16689174,129.88,129.86,37.43812781]
[1725880774005,0.16689174,129.88,129.87,20.0]
[1725880774416,0.16689174,129.88,129.87,65.0]
[1725880782629,0.16689174,129.88,129.87,66.53956544]
[1725880783523,0.16689174,129.88,129.87,66.53949876]
[1725880783841,0.16689174,129.88,129.87,65.0]
[1725880786532,0.16689174,129.88,129.87,80.89855996]
[1725880788944,0.16689174,129.88,129.87,35.89855996]
[1725880789728,0.31467434,129.88,129.87,35.89855996]
[1725880790038,0.1477826,129.88,129.87,35.89855996]
[1725880790243,0.1477826,129.88,129.87,15.89855996]
[1725880790837,0.1477826,129.88,129.85,15.89855996]
[1725880791140,0.1477826,129.88,129.86,20.0]
[1725880795440,0.1477826,129.88,129.84,0.8566219]
[1725880795743,0.1477826,129.88,129.84,16.75518186]
[1725880795952,0.1477826,129.88,129.85,20.0]
[1725880797544,21.882,129.87,129.84,0.8566219]
[1725880797952,20.0,129.86,129.84,0.8566219]
[1725880798325,15.256,129.85,129.84,0.8566219]
[1725880801044,53.59722205,129.87,129.84,0.8566219]
[1725880802231,46.97122205,129.87,129.84,0.8566219]
[1725880802834,46.97122205,129.87,129.85,15.89855996]
[1725880807937,0.1477826,129.88,129.85,15.89855996]
[1725880809741,0.16874484,129.86,129.85,15.89855996]
[1725880810254,0.16874484,129.86,129.85,35.89855996]
[1725880810941,0.16874484,129.86,129.84,45.8566219]
[1725880815559,0.16874484,129.86,129.84,0.8566219]
[1725880817846,0.16874484,129.86,129.84,16.75518186]
[1725880819554,0.16874484,129.86,129.84,18.29535106]
[1725880820267,0.16874484,129.86,129.85,45.0]
[1725880821150,0.16874484,129.86,129.85,46.53998278]
[1725880821369,0.16874484,129.86,129.85,45.0]
[1725880821968,0.16874484,129.86,129.85,46.53998265]
[1725880822269,0.16874484,129.86,129.85,45.0]
[1725880825452,0.16874484,129.86,129.84,16.75518186]
[1725880827256,0.16874484,129.86,129.85,46.53995748]
[1725880827761,0.16874484,129.86,129.85,45.0]
[1725880829779,0.15548971,129.86,129.85,45.0]
[1725880842405,0.15548971,129.86,129.85,46.53995646]
[1725880842561,0.15548971,129.86,129.85,66.53995646]
[1725880844971,0.15548971,129.86,129.85,65.0]
[1725880845969,0.15548971,129.86,129.85,80.89855996]
[1725880846568,0.15548971,129.86,129.85,20.0]
[1725880846777,0.15548971,129.86,129.85,15.89855996]
[1725880846979,0.15548971,129.86,129.85,35.89855996]
[1725880847869,0.15548971,129.86,129.85,80.89855996]
[1725880849985,0.14645177,129.86,129.85,80.89855996]
[1725880860369,0.14645177,129.86,129.85,65.0]
[1725880860570,0.14645177,129.86,129.85,80.89855996]
[1725880861986,0.15590987,129.87,129.85,80.89855996]
[1725880862168,0.15590987,129.87,129.86,65.0]
[1725880862374,0.15590987,129.87,129.86,80.89855996]
[1725880865190,0.15590987,129.87,129.86,35.89855996]
[1725880866796,0.15590987,129.87,129.86,20.0]
[1725880867080,0.15590987,129.87,129.85,20.0]
[1725880869785,0.14808373,129.86,129.85,20.0]
[1725880872078,0.14808373,129.86,129.84,16.75518186]
[1725880876198,0.14808373,129.86,129.84,0.8566219]
[1725880876604,6.35968373,129.86,129.84,0.8566219]
[1725880878198,14.06038373,129.86,129.84,0.8566219]
[1725880878626,7.7011,129.85,129.84,0.8566219]
[1725880884722,6.35968373,129.86,129.84,0.8566219]
[1725880884938,0.14808373,129.86,129.84,0.8566219]
[1725880885095,20.14808373,129.86,129.84,0.8566219]
[1725880885731,27.84878373,129.86,129.84,0.8566219]
[1725880885926,14.242,129.85,129.84,0.8566219]
[1725880886102,34.242,129.85,129.84,0.8566219]
[1725880886810,26.5409,129.85,129.84,0.8566219]
[1725880887128,0.14808373,129.86,129.84,0.8566219]
[1725880889704,0.14967284,129.85,129.84,0.8566219]
[1725880891838,0.1688903,129.86,129.84,62.43456675]
[1725880892040,0.1604714,129.88,129.86,15.89855996]
[1725880892248,0.1604714,129.88,129.87,66.53966011]
[1725880892733,0.1489723,129.89,129.87,66.53966011]
[1725880892938,0.15999257,129.91,129.89,22.10845996]
[1725880893105,0.15999257,129.91,129.89,88.64780849]
[1725880893306,0.15999257,129.91,129.89,87.10845996]
[1725880898639,0.15999257,129.91,129.9,65.0]
[1725880899552,0.15999257,129.91,129.9,82.47840172]
[1725880900420,48.32821257,129.98,129.9,82.47840172]
[1725880900625,21.7793,129.99,129.91,15.89855996]
[1725880900820,21.7793,129.99,129.91,80.89855996]
[1725880901622,21.7793,129.99,129.91,82.43756382]
[1725880902150,7.17e-05,129.92,129.91,80.89855996]
[1725880906955,7.17e-05,129.92,129.91,20.0]
[1725880907260,7.17e-05,129.92,129.88,16.2534]
[1725880907261,7.17e-05,129.92,129.9,15.89855996]
[1725880907436,7.17e-05,129.92,129.91,20.0]
[1725880908346,7.17e-05,129.92,129.91,65.0]
[1725880909839,0.16291963,129.92,129.91,65.0]
[1725880911162,0.16291963,129.92,129.9,15.89855996]
[1725880912334,0.16291963,129.92,129.91,45.0]
[1725880912939,0.16291963,129.92,129.91,46.53923036]
[1725880913860,0.16291963,129.92,129.91,45.0]
[1725880914954,0.16291963,129.92,129.91,46.53924526]
[1725880915161,0.16291963,129.92,129.91,45.0]
[1725880922169,0.16291963,129.92,129.91,46.53921594]
[1725880925755,0.16291963,129.92,129.91,46.53905303]
[1725880925956,0.16291963,129.92,129.91,66.53905303]
[1725880927366,0.16291963,129.92,129.91,65.0]
[1725880929742,61.65707487,129.99,129.91,65.0]
[1725880930169,53.96407487,129.99,129.91,65.0]
[1725880931064,61.65697487,129.99,129.91,65.0]
[1725880933969,29.4722,129.99,129.91,62.0]
[1725880936960,21.7793,129.99,129.91,62.0]
[1725880937159,53.09724297,129.99,129.91,62.0]
[1725880938668,30.8778662,129.98,129.91,62.0]
[1725880939990,30.8778662,129.98,129.94,15.89855996]
[1725880940285,30.8778662,129.98,129.95,46.53873985]
[1725880940888,30.8778662,129.98,129.96,1.5387281]
[1725880941087,30.8778662,129.98,129.95,45.0]
[1725880943167,30.8778662,129.98,129.96,15.89855996]
[1725880945474,16.1304,130.02,129.96,15.89855996]
[1725880945475,47.24022719,130.02,129.96,15.89855996]
[1725880945675,47.24022719,130.02,129.95,45.0]
[1725880946580,47.24022719,130.02,129.93,16.5275]
[1725880946794,47.24022719,130.02,129.94,20.0]
[1725880946991,30.06820211,130.01,129.94,20.0]
[1725880947169,46.94529446,130.02,129.94,20.0]
[1725880947981,46.94529446,130.02,129.95,45.0]
[1725880951577,46.94529446,130.02,129.94,45.0]
[1725880951578,7.6918,130.01,129.94,45.0]
[1725880951818,7.6918,130.01,129.93,32.42605996]
[1725880951987,7.6918,130.01,129.94,20.0]
[1725880952188,37.47349162,130.01,129.94,20.0]
[1725880953078,7.6918,130.01,129.94,20.0]
[1725880953496,37.36045105,130.01,129.94,20.0]
[1725880955196,37.36045105,130.01,129.93,22.46920641]
[1725880955371,37.36045105,130.01,129.92,20.0]
[1725880955573,37.36045105,130.01,129.93,47.46920635]
[1725880955773,7.6923,130.0,129.93,45.0]
[1725880956183,37.36055105,130.01,129.93,45.0]
[1725880956889,29.4552495,130.0,129.92,20.0]
[1725880957085,6.4909,129.99,129.9,31.39905996]
[1725880957291,6.4909,129.99,129.91,2.46931002]
[1725880957572,6.4909,129.99,129.92,2.46931002]
[1725880957771,6.4909,129.99,129.9,31.39905996]
[1725880958197,6.4909,129.99,129.91,2.46931572]
[1725880958391,6.4909,129.99,129.91,67.46931572]
[1725880958702,6.4909,129.99,129.92,2.46931572]
[1725880958885,6.4909,129.99,129.92,45.0]
[1725880961304,6.4909,129.99,129.93,2.46932641]
[1725880963501,6.4909,129.99,129.92,45.0]
[1725880963705,6.4909,129.99,129.93,2.46933022]
[1725880964496,6.4909,129.99,129.92,60.89855996]
[1725880964910,6.4909,129.99,129.93,2.46924859]
[1725880965085,6.4909,129.99,129.93,45.0]
[1725880977610,15.7368,129.98,129.93,45.0]
[1725880977807,15.7368,129.98,129.92,15.89855996]
[1725880978120,15.7368,129.98,129.91,20.0]
[1725880978309,15.7368,129.98,129.92,2.46932269]
[1725880978514,15.7368,129.98,129.93,2.46932269]
[1725880978712,15.7368,129.98,129.91,20.0]
[1725880979010,15.7368,129.98,129.92,2.46931991]
[1725880979226,15.7368,129.98,129.93,2.46931991]
[1725880979431,15.7368,129.98,129.92,45.0]
[1725880979739,15.7368,129.98,129.93,2.46932679]
[1725880979938,15.7368,129.98,129.92,45.0]
[1725880980109,15.7368,129.98,129.93,2.46932679]
[1725880980314,15.7368,129.98,129.92,45.0]
[1725880980541,15.7368,129.98,129.93,2.46932679]
[1725880980838,15.7368,129.98,129.92,45.0]
[1725880982642,15.7368,129.98,129.91,20.0]
[1725880997640,15.7368,129.98,129.9,15.89855996]
[1725880997951,15.7368,129.98,129.91,65.0]
[1725880998442,15.7368,129.98,129.91,45.0]
[1725881006251,15.7368,129.98,129.92,15.89855996]
[1725881008962,15.7368,129.98,129.91,45.0]
[1725881009171,15.7368,129.98,129.91,60.89855996]
[1725881036705,15.7368,129.98,129.93,15.89855996]
[1725881036865,15.7368,129.98,129.94,45.0]
[1725881038867,15.7368,129.98,129.95,15.89855996]
[1725881039086,15.7368,129.98,129.94,60.89855996]
[1725881040365,15.7368,129.98,129.92,15.89855996]
[1725881040566,15.7368,129.98,129.93,65.0]
[1725881040965,15.7368,129.98,129.93,45.0]
[1725881044891,15.7368,129.98,129.92,45.0]
[1725881045184,15.7368,129.98,129.93,2.46920526]
[1725881045485,15.7368,129.98,129.92,45.0]
[1725881045800,15.7368,129.98,129.93,2.46920498]
[1725881045973,15.7368,129.98,129.92,45.0]
[1725881046290,15.7368,129.98,129.93,2.46920498]
[1725881046494,15.7368,129.98,129.92,45.0]
[1725881046793,15.7368,129.98,129.93,2.46920526]
[1725881046985,15.7368,129.98,129.92,45.0]
[1725881047189,15.7368,129.98,129.93,2.46920498]
[1725881049283,15.7368,129.98,129.92,45.0]
[1725881069107,15.7368,129.98,129.93,17.43749655]
[1725881069295,15.7368,129.98,129.95,15.89855996]
[1725881072000,15.7368,129.98,129.92,45.0]
[1725881072203,15.7368,129.98,129.93,35.89855996]
[1725881072405,15.7368,129.98,129.94,45.0]
[1725881074002,15.7368,129.98,129.93,20.0]
[1725881074311,15.7368,129.98,129.87,16.2558]
[1725881074486,15.7368,129.98,129.91,15.89855996]
[1725881075691,15.7368,129.98,129.92,45.0]
[1725881078296,6.2643,129.97,129.92,45.0]
[1725881078909,6.2643,129.97,129.89,15.89855996]
[1725881079123,6.2643,129.97,129.9,65.0]
[1725881081211,6.2643,129.97,129.9,80.89855996]
[1725881081926,15.9109,129.96,129.9,80.89855996]
[1725881086407,6.2274,129.95,129.9,20.0]
[1725881086608,15.7009,129.94,129.88,15.89855996]
[1725881086956,15.7009,129.94,129.89,20.0]
[1725881087108,15.7009,129.94,129.87,15.89855996]
[1725881087307,15.7009,129.94,129.88,20.0]
[1725881092121,15.7009,129.94,129.89,45.0]
[1725881092320,15.7009,129.94,129.89,60.89855996]
[1725881101652,15.7009,129.94,129.89,15.89855996]
[1725881102962,15.7009,129.94,129.88,20.0]
[1725881103552,15.7009,129.94,129.87,15.89855996]
[1725881103737,15.7009,129.94,129.88,20.0]
[1725881104131,6.6567,129.93,129.84,0.8566219]
[1725881104335,15.3412,129.92,129.85,15.89855996]
[1725881104533,15.3412,129.92,129.86,20.0]
[1725881105530,15.3412,129.92,129.87,45.0]
[1725881110343,15.3412,129.92,129.87,60.89855996]
[1725881110556,15.3412,129.92,129.88,1.53966957]
[1725881110878,15.3412,129.92,129.89,15.89855996]
[1725881111560,15.3412,129.92,129.87,60.89855996]
[1725881117764,15.3412,129.92,129.87,45.0]
[1725881120369,15.3412,129.92,129.87,47.4701152]
[1725881121662,15.3412,129.92,129.87,45.0]
[1725881122173,15.3412,129.92,129.87,47.4701152]
[1725881126681,15.3412,129.92,129.87,2.4701152]
[1725881127567,15.3412,129.92,129.88,2.4701152]
[1725881127744,15.3412,129.92,129.86,35.89855996]
[1725881127745,15.3412,129.92,129.87,2.4701152]
[1725881127945,15.3412,129.92,129.88,2.4701152]
[1725881128142,15.3412,129.92,129.87,2.4701152]
[1725881128349,15.3412,129.92,129.88,2.4701152]
[1725881128549,15.3412,129.92,129.86,35.89855996]
[1725881128775,15.3412,129.92,129.87,2.47012616]
[1725881129283,15.3412,129.92,129.86,20.0]
[1725881129457,16.0586,129.9,129.84,0.8566219]
[1725881129965,16.0586,129.9,129.88,2.4701781]
[1725881130160,16.0586,129.9,129.84,0.8566219]
[1725881131378,16.0586,129.9,129.84,16.75518186]
[1725881131549,16.0586,129.9,129.85,45.0]
[1725881132146,16.0586,129.9,129.86,15.89855996]
[1725881132370,16.0586,129.9,129.88,15.89855996]
[1725881132580,6.3425,129.91,129.88,17.43811679]
[1725881132754,16.2665,129.93,129.9,15.89855996]
[1725881133276,16.2665,129.93,129.91,45.0]
[1725881136057,6.6421,129.95,129.91,45.0]
[1725881136876,15.5891,129.96,129.91,45.0]
[1725881136877,15.5891,129.96,129.92,17.43777765]